bitfinex-derivatives/quotes_BTCF0:USTF0_20250422
["timestamp","ask_amount","ask_price","bid_price","bid_amount"]
[1745329508023,0.3608,90412.0,90393.0,0.3908]
[1745329508419,0.2376,90409.0,90393.0,0.3908]
[1745329508631,0.3608,90407.0,90393.0,0.3908]
[1745329508931,0.27305134,90409.0,90393.0,0.3908]
[1745329509226,0.63385134,90409.0,90393.0,0.387113]
[1745329509428,0.182,90408.0,90393.0,0.387113]
[1745329509619,0.3608,90406.0,90393.0,0.387113]
[1745329509819,0.182,90405.0,90393.0,0.387113]
[1745329510822,0.24,90404.0,90393.0,0.387113]
[1745329511225,0.182,90403.0,90393.0,0.387013]
[1745329511627,0.19,90402.0,90393.0,0.387013]
[1745329512130,0.1803,90401.0,90393.0,0.36041276]
[1745329512337,0.1803,90401.0,90393.0,0.32051239]
[1745329512523,0.1803,90401.0,90393.0,0.05513862]
[1745329512724,0.19,90400.0,90393.0,0.05513862]
[1745329512931,0.19,90400.0,90380.0,0.17040933]
[1745329513230,0.05,90381.0,90380.0,0.36240933]
[1745329513425,0.05,90381.0,90380.0,0.192]
[1745329513625,0.05,90381.0,90380.0,0.302644]
[1745329514227,0.05,90381.0,90380.0,0.295644]
[1745329514735,0.05,90381.0,90380.0,0.28178924]
[1745329515037,0.05,90381.0,90380.0,0.26239252]
[1745329515429,0.05,90381.0,90380.0,0.26229252]
[1745329515627,0.05,90381.0,90380.0,0.45659252]
[1745329516145,0.4108,90381.0,90380.0,0.64379252]
[1745329516338,0.4108,90381.0,90380.0,0.31441001]
[1745329516831,0.4108,90381.0,90374.0,0.01503673]
[1745329517029,0.4108,90381.0,90318.0,0.06245532]
[1745329517030,0.05,90361.0,90350.0,0.17040933]
[1745329517225,0.1335,90380.0,90360.0,0.3608]
[1745329517435,0.1335,90380.0,90361.0,0.1905]
[1745329517639,0.1335,90380.0,90361.0,0.3748]
[1745329518036,0.13366594,90380.0,90361.0,0.37496594]
[1745329518238,0.13366594,90380.0,90371.0,0.3608]
[1745329518429,0.13366594,90380.0,90372.0,0.1844]
[1745329518627,0.3608,90378.0,90372.0,0.1844]
[1745329518832,0.17040933,90390.0,90377.0,0.3608]
[1745329519630,0.17040933,90400.0,90378.0,0.1876]
[1745329519942,0.17040933,90410.0,90394.0,0.3608]
[1745329520131,0.3608,90446.0,90413.0,0.33419861]
[1745329520330,0.17040933,90420.0,90413.0,0.33419861]
[1745329520535,0.27040933,90420.0,90413.0,0.18572688]
[1745329520737,0.1106,90419.0,90413.0,0.15586045]
[1745329520939,0.10004,90421.0,90413.0,0.10044299]
[1745329521240,0.192,90419.0,90410.0,0.25692529]
[1745329521438,0.192,90419.0,90418.0,0.3608]
[1745329521640,0.192,90419.0,90418.0,0.22206532]
[1745329521833,0.192,90419.0,90418.0,0.17428533]
[1745329522034,0.192,90419.0,90418.0,0.41746381]
[1745329522232,0.17040933,90430.0,90418.0,0.3468]
[1745329522439,0.05,90419.0,90418.0,0.23596508]
[1745329522737,0.05,90419.0,90418.0,0.18054762]
[1745329522944,0.05,90419.0,90418.0,0.16625238]
[1745329523139,0.05,90419.0,90409.0,0.13395441]
[1745329523336,0.05,90419.0,90407.0,0.00016594]
[1745329523337,0.4108,90411.0,90407.0,0.00016594]
[1745329523533,0.1833,90410.0,90407.0,0.00016594]
[1745329523841,0.1833,90410.0,90401.0,0.23612506]
[1745329524030,0.05,90404.0,90400.0,0.17040933]
[1745329524232,0.1895,90403.0,90400.0,0.24]
[1745329524433,0.3608,90401.0,90391.0,0.1801]
[1745329524743,0.1895,90400.0,90394.0,0.08090995]
[1745329525141,0.1895,90400.0,90394.0,0.35777918]
[1745329525348,0.1895,90400.0,90394.0,0.29072328]
[1745329525640,0.1895,90400.0,90391.0,0.5409]
[1745329526243,0.1895,90400.0,90391.0,0.7329]
[1745329526244,0.19771416,90400.0,90391.0,0.7329]
[1745329527041,0.19771416,90400.0,90391.0,0.6879]
[1745329527245,0.19771416,90400.0,90390.0,0.17040933]
[1745329527651,0.3608,90417.0,90399.0,0.3608]
[1745329527946,0.3608,90417.0,90407.0,0.17040933]
[1745329528134,0.3608,90417.0,90408.0,0.1848]
[1745329528534,0.3608,90417.0,90407.0,0.17040933]
[1745329528737,0.36897761,90417.0,90407.0,0.17040933]
[1745329528944,0.36897761,90417.0,90407.0,0.13943603]
[1745329529843,0.36897761,90417.0,90407.0,0.13243603]
[1745329530245,0.36897761,90417.0,90408.0,0.32603219]
[1745329530542,0.1845,90416.0,90408.0,0.32603219]
[1745329530742,0.1845,90416.0,90406.0,0.17040933]
[1745329531155,0.3608,90407.0,90402.0,0.1918]
[1745329531347,0.1845,90416.0,90402.0,0.1918]
[1745329531536,0.1845,90406.0,90402.0,0.1918]
[1745329531737,0.1845,90406.0,90401.0,0.188]
[1745329531738,0.1845,90406.0,90391.0,0.33076079]
[1745329532039,0.1845,90406.0,90392.0,0.1967]
[1745329532040,0.3608,90403.0,90392.0,0.1967]
[1745329532240,0.1845,90402.0,90392.0,0.1953]
[1745329532847,0.1845,90402.0,90391.0,0.192]
[1745329533050,0.3608,90401.0,90391.0,0.192]
[1745329533251,0.3608,90401.0,90390.0,0.17040933]
[1745329533546,0.05,90394.0,90382.0,0.1887]
[1745329533746,0.3608,90391.0,90372.0,0.3348]
[1745329533949,0.3608,90373.0,90370.0,0.00905309]
[1745329534141,0.196,90372.0,90361.0,0.3767]
[1745329534345,0.3608,90396.0,90371.0,0.3608]
[1745329534545,0.05,90384.0,90380.0,0.17040933]
[1745329534742,0.186,90383.0,90381.0,0.188]
[1745329534948,0.186,90383.0,90382.0,0.3608]
[1745329535750,0.186,90383.0,90381.0,0.1492645]
[1745329535941,0.1855,90382.0,90381.0,0.1492645]
[1745329536143,0.3608,90405.0,90381.0,0.5100645]
[1745329536343,0.3608,90405.0,90382.0,0.1876]
[1745329536547,0.3608,90419.0,90395.0,0.3608]
[1745329536743,0.3608,90419.0,90403.0,0.3608]
[1745329536949,0.05,90409.0,90403.0,0.17742573]
[1745329537148,0.05,90409.0,90404.0,0.379]
[1745329537347,0.05,90401.0,90397.0,0.00016594]
[1745329537845,0.05,90401.0,90397.0,0.37326594]
[1745329538245,0.05,90401.0,90397.0,0.56526594]
[1745329538945,0.05,90401.0,90398.0,0.3608]
[1745329539153,0.05,90401.0,90398.0,0.5528]
[1745329539346,0.05,90401.0,90399.0,0.3704]
[1745329541246,0.05,90401.0,90399.0,0.5624]
[1745329542250,0.00016594,90415.0,90399.0,0.5624]
[1745329542442,0.00016594,90415.0,90413.0,0.3608]
[1745329542644,0.00016594,90415.0,90414.0,0.3743]
[1745329543040,0.05016594,90415.0,90414.0,0.3743]
[1745329543441,0.00016594,90415.0,90414.0,0.3743]
[1745329543645,0.00016594,90415.0,90414.0,0.3549093]
[1745329543841,0.00016594,90415.0,90414.0,0.3548093]
[1745329544241,0.17040933,90430.0,90414.0,0.5468093]
[1745329544446,0.05,90419.0,90414.0,0.5468093]
[1745329545046,0.05,90419.0,90414.0,0.5398093]
[1745329545447,0.05,90419.0,90414.0,0.49992502]
[1745329545647,0.05,90419.0,90414.0,0.48607606]
[1745329545853,0.00016594,90426.0,90414.0,0.48607606]
[1745329546052,0.00016594,90426.0,90425.0,0.3608]
[1745329546246,0.00841639,90430.0,90425.0,0.33483552]
[1745329546446,0.09852,90453.0,90425.0,0.33483552]
[1745329546659,0.09852,90453.0,90433.0,0.3608]
[1745329547142,0.3608,90447.0,90434.0,0.1895]
[1745329547542,0.00016594,90446.0,90434.0,0.1895]
[1745329547952,0.3608,90443.0,90434.0,0.1895]
[1745329548153,0.00016594,90446.0,90438.0,0.3608]
[1745329548358,0.00016594,90446.0,90439.0,0.16180298]
[1745329549244,0.00016594,90446.0,90439.0,0.12426298]
[1745329550649,0.00016594,90446.0,90439.0,0.09767679]
[1745329550849,0.00016594,90446.0,90444.0,0.3608]
[1745329551053,0.00858176,90446.0,90444.0,0.3608]
[1745329551259,0.11914576,90446.0,90444.0,0.31823]
[1745329551457,0.11914576,90446.0,90444.0,0.31813]
[1745329551665,0.00858176,90446.0,90444.0,0.31813]
[1745329552154,0.00858176,90446.0,90439.0,0.08404679]
[1745329552548,0.36938176,90446.0,90439.0,0.08404679]
[1745329552761,0.36938176,90446.0,90439.0,0.06573679]
[1745329552961,0.00858176,90446.0,90439.0,0.06573679]
[1745329553264,0.00858176,90446.0,90440.0,0.179]
[1745329553957,0.00858176,90446.0,90439.0,0.06573679]
[1745329555151,0.1989,90445.0,90439.0,0.06573679]
[1745329555356,0.09852,90465.0,90444.0,0.3608]
[1745329555562,0.1989,90455.0,90444.0,0.3608]
[1745329555760,0.17046232,90490.0,90463.0,0.34695422]
[1745329555950,0.1876,90489.0,90487.0,0.3608]
[1745329556149,0.3796,90489.0,90476.0,0.29988219]
[1745329556459,0.3796,90489.0,90439.0,0.1906]
[1745329556460,0.41508056,90489.0,90488.0,0.3608]
[1745329556658,0.32600056,90489.0,90488.0,0.28260616]
[1745329556862,0.62411257,90489.0,90488.0,0.20021307]
[1745329557060,0.62411257,90489.0,90488.0,0.14483324]
[1745329557251,0.03548056,90489.0,90488.0,0.14483324]
[1745329557450,0.09852,90489.0,90488.0,0.14483324]
[1745329557661,0.29672,90489.0,90488.0,0.04266015]
[1745329557958,0.0082322,90489.0,90485.0,0.12509099]
[1745329558163,0.0601925,90507.0,90485.0,0.12509099]
[1745329558352,0.1836,90506.0,90504.0,0.3608]
[1745329558658,0.02762573,90507.0,90504.0,0.30542017]
[1745329558866,0.00242664,90530.0,90505.0,0.11049199]
[1745329559053,0.00242664,90530.0,90520.0,0.3608]
[1745329559252,0.29272,90529.0,90520.0,0.30544381]
[1745329559458,0.3608,90523.0,90516.0,0.00016574]
[1745329559661,0.1942,90522.0,90505.0,0.51490955]
[1745329559860,0.1982,90521.0,90519.0,0.33087545]
[1745329560252,0.1942,90520.0,90519.0,0.45938688]
[1745329560452,0.09848,90525.0,90519.0,0.45938688]
[1745329560658,0.1937,90529.0,90519.0,0.43391668]
[1745329560857,0.1937,90529.0,90519.0,0.42691668]
[1745329561057,0.1937,90529.0,90519.0,0.192]
[1745329561459,0.03735987,90530.0,90520.0,0.48654381]
[1745329561762,0.2077692,90530.0,90528.0,0.3608]
[1745329561961,0.03735987,90530.0,90519.0,0.192]
[1745329562155,0.3608,90522.0,90513.0,0.00016574]
[1745329562361,0.3608,90523.0,90511.0,0.30735668]
[1745329562560,0.17040933,90521.0,90511.0,0.30735668]
[1745329562861,0.17040933,90521.0,90511.0,0.29628453]
[1745329563061,0.1937,90520.0,90512.0,0.1875]
[1745329563264,0.17040933,90521.0,90512.0,0.14985812]
[1745329563563,0.3608,90519.0,90512.0,0.14985812]
[1745329563764,0.3608,90519.0,90511.0,0.48828453]
[1745329564063,0.3608,90516.0,90511.0,0.0302067]
[1745329564266,0.4155,90515.0,90512.0,0.18396187]
[1745329564468,0.4155,90515.0,90512.0,0.04834163]
[1745329564653,0.4155,90515.0,90474.0,0.10328]
[1745329564654,0.7763,90515.0,90478.0,0.3608]
[1745329564856,0.3608,90479.0,90451.0,0.3608]
[1745329565058,0.17040933,90461.0,90451.0,0.3608]
[1745329565263,0.05,90460.0,90451.0,0.5528]
[1745329565455,0.3608,90481.0,90459.0,0.3608]
[1745329565661,0.3608,90489.0,90465.0,0.3608]
[1745329565861,0.10328,90495.0,90482.0,0.7216]
[1745329566065,0.10328,90497.0,90493.0,0.3608]
[1745329566263,0.05,90497.0,90494.0,0.1916]
[1745329566566,0.05,90497.0,90483.0,0.1857]
[1745329566567,0.471304,90496.0,90483.0,0.1857]
[1745329566761,0.3608,90490.0,90484.0,0.1916]
[1745329566959,0.4108,90490.0,90484.0,0.0916]
[1745329567167,0.05,90490.0,90484.0,0.2836]
[1745329567664,0.05,90490.0,90484.0,0.2336]
[1745329568057,0.05,90490.0,90484.0,0.1336]
[1745329568265,0.1973,90489.0,90484.0,0.1335]
[1745329568469,0.1973,90489.0,90484.0,0.11618688]
[1745329568766,0.05,90490.0,90485.0,0.1787]
[1745329568966,0.05,90490.0,90485.0,0.1287]
[1745329569162,0.05,90490.0,90485.0,0.2170442]
[1745329569363,0.05,90490.0,90488.0,0.3608]
[1745329569965,0.05,90490.0,90488.0,0.3192]
[1745329570163,0.05,90490.0,90488.0,0.192]
[1745329570368,0.05,90490.0,90488.0,0.1908]
[1745329570666,0.05,90490.0,90488.0,0.1336]
[1745329570868,0.1849,90489.0,90488.0,0.1336]
[1745329571063,0.05,90490.0,90488.0,0.1336]
[1745329571460,0.05,90490.0,90489.0,0.1801]
[1745329571660,0.05,90490.0,90489.0,0.1308]
[1745329572069,0.05,90490.0,90489.0,0.3228]
[1745329572664,0.1849,90506.0,90489.0,0.433312]
[1745329572863,0.1849,90506.0,90496.0,0.3608]
[1745329573062,0.00864155,90499.0,90497.0,0.1812]
[1745329573665,0.05864155,90499.0,90497.0,0.1812]
[1745329574063,0.05864155,90499.0,90497.0,0.3732]
[1745329574660,0.05864155,90499.0,90484.0,0.33074999]
[1745329574861,0.3731,90498.0,90485.0,0.3771]
[1745329575065,0.05864155,90499.0,90485.0,0.3771]
[1745329575265,0.05864155,90499.0,90493.0,0.3608]
[1745329575465,0.05864155,90499.0,90494.0,0.3757]
[1745329576070,0.05864155,90499.0,90494.0,0.5677]
[1745329576567,0.05864155,90499.0,90494.0,0.5607]
[1745329577569,0.3608,90497.0,90494.0,0.192]
[1745329577871,0.29288,90496.0,90480.0,0.00016574]
[1745329578074,0.3608,90481.0,90465.0,0.3608]
[1745329578269,0.3608,90466.0,90457.0,0.1798]
[1745329578466,0.3608,90458.0,90457.0,0.1798]
[1745329578675,0.05,90458.0,90455.0,0.3608]
[1745329578877,0.3863,90457.0,90455.0,0.3608]
[1745329579063,0.3863,90457.0,90455.0,0.5528]
[1745329579271,0.3863,90457.0,90455.0,0.3206259]
[1745329579464,0.3863,90457.0,90455.0,0.192]
[1745329579465,0.3608,90456.0,90455.0,0.192]
[1745329579674,0.3608,90456.0,90455.0,0.092]
[1745329579974,0.7471,90456.0,90455.0,0.092]
[1745329580277,0.3863,90456.0,90455.0,0.092]
[1745329580471,0.00016583,90465.0,90455.0,0.0919]
[1745329580772,0.36096583,90465.0,90456.0,0.5697]
[1745329580967,0.3608,90457.0,90456.0,0.32735609]
[1745329581168,0.3608,90457.0,90456.0,0.192]
[1745329581372,0.7216,90457.0,90456.0,0.192]
[1745329581874,0.3608,90457.0,90456.0,0.192]
[1745329582270,0.3947,90464.0,90456.0,0.192]
[1745329582465,0.3947,90464.0,90457.0,0.1822]
[1745329582668,0.3608,90460.0,90457.0,0.1822]
[1745329582866,0.1942,90459.0,90457.0,0.1822]
[1745329583369,0.00016583,90465.0,90457.0,0.3742]
[1745329583565,0.3608,90458.0,90457.0,0.3742]
[1745329584174,0.00016583,90465.0,90457.0,0.3672]
[1745329584876,0.3608,90459.0,90457.0,0.3672]
[1745329585173,0.3608,90469.0,90457.0,0.3672]
[1745329585174,0.05,90478.0,90458.0,1.019344]
[1745329585372,0.3608,90490.0,90477.0,0.3608]
[1745329585567,0.05,90484.0,90480.0,0.17040933]
[1745329585767,0.05,90484.0,90481.0,0.1872]
[1745329586172,0.05,90484.0,90481.0,0.3792]
[1745329586772,0.05,90484.0,90482.0,0.1909]
[1745329587176,0.05,90484.0,90483.0,0.1872]
[1745329587376,0.05,90484.0,90483.0,0.374]
[1745329588175,0.05,90484.0,90483.0,0.566]
[1745329588678,0.00016583,90492.0,90483.0,0.566]
[1745329588878,0.1891,90507.0,90489.0,0.17040933]
[1745329589079,0.1891,90507.0,90490.0,0.383]
[1745329589280,0.3808,90507.0,90490.0,0.383]
[1745329589483,0.3608,90504.0,90490.0,0.383]
[1745329589778,0.3608,90499.0,90490.0,0.383]
[1745329589976,0.1891,90498.0,90490.0,0.383]
[1745329590175,0.3772,90498.0,90490.0,0.575]
[1745329590682,0.0001652,90506.0,90491.0,0.110504]
[1745329590873,0.3608,90527.0,90505.0,0.7216]
[1745329591077,0.00810857,90527.0,90521.0,0.3608]
[1745329591377,0.05,90545.0,90525.0,0.3608]
[1745329591577,0.17040933,90570.0,90544.0,0.3608]
[1745329591783,0.3608,90558.0,90545.0,0.1756]
[1745329591981,0.1881,90557.0,90548.0,0.00016564]
[1745329592279,0.3751,90557.0,90548.0,0.19216564]
[1745329593179,0.3608,90552.0,90548.0,0.19216564]
[1745329593484,0.3844,90551.0,90548.0,0.19216564]
[1745329594377,0.3844,90551.0,90549.0,0.3608]
[1745329594982,0.3844,90551.0,90550.0,0.1872]
[1745329595170,0.3844,90551.0,90550.0,0.3792]
[1745329595372,0.3608,90585.0,90550.0,0.739636]
[1745329595577,0.1934,90579.0,90572.0,0.3608]
[1745329595872,0.05,90576.0,90572.0,0.3608]
[1745329596074,0.3608,90574.0,90566.0,0.19906564]
[1745329596274,0.3608,90585.0,90572.0,0.192]
[1745329596475,0.3608,90585.0,90579.0,0.3608]
[1745329596675,5.311e-05,90590.0,90580.0,0.3798]
[1745329596676,0.05,90582.0,90580.0,0.3798]
[1745329596877,0.11,90600.0,90581.0,0.3608]
[1745329597070,0.11842159,90600.0,90599.0,0.3608]
[1745329597280,0.1844,90612.0,90599.0,0.3608]
[1745329597481,0.3608,90607.0,90600.0,0.1989]
[1745329597683,0.1844,90606.0,90600.0,0.5597]
[1745329597990,0.00810027,90612.0,90601.0,0.1809]
[1745329598178,0.3608,90630.0,90611.0,0.3608]
[1745329598373,0.3647,90629.0,90614.0,0.3608]
[1745329598777,0.00866532,90615.0,90614.0,0.471156]
[1745329598979,0.36946532,90615.0,90612.0,0.3798]
[1745329599179,0.3608,90614.0,90612.0,0.192]
[1745329599384,0.5452,90614.0,90612.0,0.192]
[1745329599581,0.18155734,90614.0,90612.0,0.192]
[1745329599889,0.5404,90613.0,90612.0,0.192]
[1745329600185,0.03873436,90596.0,90570.0,0.6154201]
[1745329600384,0.3608,90603.0,90580.0,0.6149201]
[1745329600581,0.3608,90603.0,90591.0,0.3608]
[1745329600582,0.1803,90602.0,90591.0,0.3608]
[1745329600885,0.1803,90602.0,90601.0,0.3608]
[1745329601287,0.1803,90602.0,90601.0,0.471172]
[1745329601480,0.00016471,90611.0,90601.0,0.721172]
[1745329601675,0.12916,90634.0,90610.0,0.3608]
[1745329601881,0.1944,90633.0,90618.0,0.3608]
[1745329602085,0.1944,90633.0,90619.0,0.1994]
[1745329602278,0.5552,90633.0,90618.0,0.5528]
[1745329602476,0.3608,90631.0,90618.0,0.5528]
[1745329602685,0.1944,90630.0,90618.0,0.192]
[1745329603187,0.17893625,90640.0,90629.0,0.3608]
[1745329603385,0.18723332,90640.0,90629.0,0.3608]
[1745329603581,0.12912,90639.0,90637.0,0.3608]
[1745329603785,0.00829707,90640.0,90637.0,0.3608]
[1745329604087,0.04444444,90638.0,90637.0,0.3608]
[1745329604286,0.3608,90680.0,90638.0,0.1942]
[1745329604482,0.0263573,90670.0,90666.0,0.3608]
[1745329604987,0.3608,90718.0,90666.0,0.3607]
[1745329605191,0.3608,90718.0,90701.0,0.3608]
[1745329605485,0.00845132,90718.0,90710.0,0.3608]
[1745329605682,0.3608,90744.0,90710.0,0.3608]
[1745329605683,0.3608,90744.0,90717.0,0.3608]
[1745329605986,0.2546201,90750.0,90743.0,0.3608]
[1745329606200,0.430876,90749.0,90743.0,0.35527404]
[1745329606492,0.05791142,90744.0,90743.0,0.30527404]
[1745329606785,0.110196,90748.0,90743.0,0.24974808]
[1745329606988,0.110196,90748.0,90740.0,0.3608]
[1745329606989,0.3608,90744.0,90715.0,0.3608]
[1745329607297,0.2546201,90725.0,90706.0,0.3548]
[1745329607482,0.3608,90708.0,90699.0,0.3376]
[1745329607788,0.05,90699.0,90688.0,0.184]
[1745329608178,0.3608,90695.0,90678.0,0.16114241]
[1745329608379,0.7216,90685.0,90657.0,0.3608]
[1745329608582,0.3608,90658.0,90647.0,0.13821349]
[1745329608788,0.05,90641.0,90636.0,0.3608]
[1745329609085,0.12904,90640.0,90637.0,0.110196]
[1745329609283,0.05,90641.0,90639.0,0.3608]
[1745329609487,0.12904,90674.0,90639.0,0.3608]
[1745329609687,0.12904,90674.0,90673.0,0.3608]
[1745329610287,0.12904,90674.0,90673.0,0.192]
[1745329610491,0.28932401,90674.0,90673.0,0.192]
[1745329610793,0.53932401,90674.0,90662.0,0.3608]
[1745329611090,0.1922,90673.0,90652.0,0.09105591]
[1745329611295,0.1922,90673.0,90657.0,0.3608]
[1745329611486,0.553,90673.0,90658.0,0.1994]
[1745329611689,0.553,90673.0,90658.0,0.29045591]
[1745329611888,0.12904,90676.0,90659.0,0.09105591]
[1745329612093,0.12904,90675.0,90659.0,0.09105591]
[1745329612292,0.12904,90675.0,90660.0,0.28225591]
[1745329612492,0.1922,90682.0,90671.0,0.3608]
[1745329612695,0.12904,90681.0,90672.0,0.1994]
[1745329613090,0.1922,90682.0,90673.0,0.09105591]
[1745329613305,0.3608,90676.0,90673.0,0.09105591]
[1745329613496,0.1922,90675.0,90672.0,0.192]
[1745329613791,0.1922,90675.0,90673.0,0.09105591]
[1745329613992,0.3608,90676.0,90673.0,0.27855591]
[1745329614197,0.3608,90676.0,90673.0,0.3795]
[1745329614496,0.12904,90682.0,90675.0,0.45185591]
[1745329614693,0.00016496,90683.0,90675.0,0.3608]
[1745329614893,0.1968,90688.0,90676.0,0.04105591]
[1745329615088,0.12904,90690.0,90686.0,0.3538]
[1745329615288,0.13734341,90690.0,90687.0,0.1875]
[1745329615494,0.13734341,90690.0,90689.0,0.04105591]
[1745329615495,0.00830341,90690.0,90689.0,0.04105591]
[1745329615793,0.3608,90716.0,90689.0,0.04105591]
[1745329615794,0.194,90702.0,90689.0,0.04105591]
[1745329615991,0.194,90702.0,90695.0,0.3608]
[1745329616196,0.194,90702.0,90696.0,0.1875]
[1745329616400,0.194,90702.0,90697.0,0.04105591]
[1745329616696,0.00016514,90705.0,90701.0,0.04105591]
[1745329616888,0.00016514,90705.0,90704.0,0.04105591]
[1745329617085,0.00016514,90705.0,90702.0,0.1875]
[1745329617287,0.00860117,90705.0,90703.0,0.04105591]
[1745329617587,0.00016514,90705.0,90703.0,0.04105591]
[1745329617788,0.5474,90704.0,90701.0,0.192]
[1745329617994,0.1866,90704.0,90702.0,0.23245591]
[1745329618204,0.1866,90704.0,90701.0,0.18647433]
[1745329618390,0.3608,90702.0,90664.0,0.3608]
[1745329618591,0.3608,90674.0,90646.0,0.30185591]
[1745329618794,0.33546843,90670.0,90647.0,0.1914]
[1745329618998,0.3608,90654.0,90630.0,0.3608]
[1745329619199,0.3608,90645.0,90631.0,0.1914]
[1745329619496,0.3608,90645.0,90608.0,0.3608]
[1745329619497,0.3608,90632.0,90587.0,0.3608]
[1745329619699,0.3608,90612.0,90601.0,0.1914]
[1745329619887,0.1866,90611.0,90601.0,0.1914]
[1745329620800,0.3608,90638.0,90588.0,0.1966]
[1745329621098,0.3608,90638.0,90624.0,0.3608]
[1745329621099,0.1901,90633.0,90624.0,0.3608]
[1745329621297,0.36898552,90638.0,90625.0,0.1966]
[1745329621698,0.3608,90628.0,90625.0,0.1966]
[1745329621896,0.3608,90630.0,90610.0,0.3608]
[1745329622092,0.3608,90622.0,90610.0,0.192]
[1745329622298,0.3608,90622.0,90611.0,0.00016548]
[1745329622494,0.00818552,90638.0,90620.0,0.3608]
[1745329622694,0.3608,90670.0,90635.0,0.3608]
[1745329622893,0.1901,90669.0,90636.0,0.1913]
[1745329623102,0.1901,90669.0,90637.0,0.110328]
[1745329623297,1e-08,90641.0,90637.0,0.110328]
[1745329623598,0.3268,90680.0,90638.0,0.484528]
[1745329623795,0.3608,90683.0,90662.0,0.3608]
[1745329624000,0.33546843,90680.0,90663.0,0.1915]
[1745329624191,0.1932,90679.0,90663.0,0.35697714]
[1745329624396,0.05,90680.0,90663.0,0.32588344]
[1745329624700,0.0501654,90680.0,90663.0,0.32588344]
[1745329625004,0.0501654,90680.0,90663.0,0.192]
[1745329625199,0.3608,90674.0,90664.0,0.1954]
[1745329625399,0.1932,90673.0,90664.0,0.17606032]
[1745329625600,0.1932,90673.0,90662.0,0.00016548]
[1745329626193,0.1932,90673.0,90662.0,0.19216548]
[1745329626398,0.05,90674.0,90663.0,0.3608]
[1745329626990,0.05,90674.0,90662.0,0.19216548]
[1745329627196,0.181,90673.0,90663.0,0.192]
[1745329627498,0.4108,90668.0,90663.0,0.16919712]
[1745329627691,0.181,90667.0,90663.0,0.16919712]
[1745329627896,0.291296,90667.0,90663.0,0.16367129]
[1745329628100,0.4108,90668.0,90662.0,0.00016548]
[1745329628299,0.05,90668.0,90667.0,0.3608]
[1745329629196,0.05,90668.0,90667.0,0.5528]
[1745329629500,0.05,90668.0,90667.0,0.192]
[1745329630393,0.05,90668.0,90667.0,0.3881]
[1745329630593,0.05,90668.0,90667.0,0.3811]
[1745329630796,0.410292,90668.0,90667.0,0.12122342]
[1745329630998,0.771092,90668.0,90667.0,0.07122342]
[1745329631196,0.771092,90668.0,90650.0,4.99463965]
[1745329631400,0.3608,90651.0,90650.0,4.99463965]
[1745329631599,0.7944,90651.0,90650.0,4.96320281]
[1745329631798,1.10401201,90651.0,90650.0,4.91320281]
[1745329632098,1.29601201,90651.0,90650.0,4.81787258]
[1745329632405,1.29601201,90651.0,90650.0,4.78581111]
[1745329632703,1.70551201,90651.0,90650.0,4.78581111]
[1745329632905,1.45551201,90651.0,90650.0,4.73028528]
[1745329633100,0.85401201,90651.0,90650.0,4.70264457]
[1745329633314,0.85401201,90651.0,90650.0,4.69711874]
[1745329633606,0.85401201,90651.0,90650.0,4.69159291]
[1745329633997,0.05,90651.0,90650.0,4.61672046]
[1745329634307,0.05,90651.0,90650.0,4.80872046]
[1745329634499,0.16031201,90651.0,90650.0,4.78937642]
[1745329634803,0.41031201,90651.0,90650.0,4.78385059]
[1745329635003,0.16031201,90651.0,90650.0,4.78385059]
[1745329635205,0.16031201,90651.0,90650.0,4.59185059]
[1745329635398,0.05,90651.0,90650.0,4.59185059]
[1745329635909,0.05,90651.0,90650.0,4.54185059]
[1745329636118,0.16031201,90651.0,90650.0,4.73385059]
[1745329636409,0.95341201,90651.0,90650.0,4.67832476]
[1745329636603,2.55489201,90651.0,90650.0,1.33741431]
[1745329637001,2.55489201,90651.0,90650.0,1.28188751]
[1745329637204,2.74689201,90651.0,90650.0,1.08988751]
[1745329637403,2.74689201,90651.0,90650.0,1.08436071]
[1745329637603,2.74689201,90651.0,90641.0,0.00016548]
[1745329637912,2.74689201,90651.0,90602.0,0.191]
[1745329637913,0.4108,90642.0,90625.0,4.98913868]
[1745329638212,0.7716,90626.0,90625.0,4.93679694]
[1745329638604,1.0216,90626.0,90625.0,4.93127014]
[1745329638802,0.7716,90626.0,90625.0,4.88127014]
[1745329639010,1.0216,90626.0,90625.0,4.88127014]
[1745329639309,1.74176238,90626.0,90566.0,0.3608]
[1745329639506,1.74176238,90626.0,90550.0,0.33546843]
[1745329639507,0.7216,90601.0,90600.0,4.9944732]
[1745329639707,1.31474,90601.0,90600.0,4.9944732]
[1745329639912,1.1811,90601.0,90600.0,4.9944732]
[1745329640100,0.8203,90601.0,90600.0,4.9944732]
[1745329640409,0.8203,90601.0,90600.0,4.96792651]
[1745329640906,0.8203,90601.0,90600.0,4.95130971]
[1745329641306,1.0703,90601.0,90600.0,4.94578291]
[1745329641700,1.2661,90601.0,90600.0,4.94025611]
[1745329641901,1.0161,90601.0,90600.0,4.94025611]
[1745329642109,0.8203,90601.0,90600.0,6.49586147]
[1745329642310,0.4595,90601.0,90600.0,6.71649147]
[1745329642505,0.1964,90609.0,90600.0,6.71649147]
[1745329642701,0.3608,90608.0,90603.0,0.22063]
[1745329642902,0.3608,90604.0,90600.0,4.93472931]
[1745329643102,0.3608,90601.0,90600.0,4.93472931]
[1745329643607,0.7703,90601.0,90600.0,4.92920251]
[1745329643812,1.1811,90601.0,90600.0,4.92920251]
[1745329644009,1.1811,90601.0,90600.0,6.49033467]
[1745329644209,0.8203,90601.0,90600.0,6.66297678]
[1745329644413,0.8203,90601.0,90600.0,5.10184462]
[1745329644902,0.8203,90601.0,90600.0,5.08801802]
[1745329645102,0.8203,90601.0,90600.0,4.89601802]
[1745329645303,0.8203,90601.0,90600.0,4.87938763]